[Event "EYCC Girls U14 2018"]
[Site "Riga"]
[Date "2018.08.21"]
[Round "2"]
[White "Tikhonova, Alesia"]
[Black "Ciolacu, Alessia Mihaela"]
[Result "1-0"]
[ECO "C55"]
[WhiteElo "1792"]
[BlackElo "2020"]
[Annotator "NA RC"]
[PlyCount "71"]
[EventDate "2018.08.20"]
[EventType "swiss"]
[EventCountry "LAT"]
[SourceTitle "playchess.com"]
[Source "ChessBase"]
[SourceQuality "1"]
[TimeControl "40/5400+30:1800+30"]

1. e4 {[%emt 0:00:00]} e5 {[%emt 0:00:00]} 2. Nf3 {[%emt 0:00:00]} Nc6 {[%emt 0:00:00]} 3. d4 {[%emt 0:00:00]} exd4 {[%emt 0:00:00]} 4. Bc4 {[%emt 0:00:00]} Nf6 {[%emt 0:00:00]} 5. e5 {[%emt 0:00:21]} d5 {[%emt 0:00:10]} 6. Bb5 {[%emt 0:00:10]} Ne4 {[%emt 0:00:16]} 7. Nxd4 {[%emt 0:00:10]} Bd7 {[%emt 0:00:25]} 8. Bxc6 {[%emt 0:00:18]} bxc6 {[%emt 0:00:09]} 9. O-O {[%emt 0:00:23]} Be7 {[%emt 0:00:53]} 10. f3 {[%emt 0:02:15]} Nc5 {[%emt 0:00:58]} 11. Nc3 {[%emt 0:01:57]} O-O {[%emt 0:02:53]} 12. f4 {[%emt 0:14:29]} f6 $11 {[%emt 0:03:23]} 13. Be3 fxe5 {[%emt 0:05:37]} 14. fxe5 {[%emt 0:00:41]} Qe8 {[%emt 0:00:29]} 15. Rxf8+ {[%emt 0:04:21]} Bxf8 {[%emt 0:04:14]} 16. Bf4 {[%emt 0:02:31]} Rb8 {[%emt 0:06:05]} 17. b3 {[%emt 0:36:20]} Ne6 {[%emt 0:10:14]} 18. Bg3 Rb4 19. Nce2 {[%emt 0:03:31]} c5 {[%emt 0:04:25]} 20. c3 {[%emt 0:03:04]} Nxd4 {[%emt 0:06:13]} 21. Nxd4 Rb8 {[%emt 0:03:28]} 22. Nf3 {[%emt 0:02:05]} Bc6 23. Qe2 {[%emt 0:07:44]} a5 {[%emt 0:07:05]} 24. e6 {[%emt 0:04:19]} a4 {[%emt 0:09:15]} 25. bxa4 Bxa4 {[%emt 0:02:24]} 26. Bxc7 {[%emt 0:01:30]} Rb7 {[%emt 0:00:36]} 27. Bg3 {[%emt 0:00:50]} Be7 {[%emt 0:01:08]} 28. Re1 {[%emt 0:07:01]} Rb6 29. Qe5 {[%emt 0:01:58]} Bc6 {[%emt 0:15:33]} 30. Bh4 Rb2 {[%emt 0:02:53]} 31. Bxe7 {[%emt 0:01:34]} Qxe7 {[%emt 0:00:07]} 32. a4 {[%emt 0:00:41]} h6 {[%emt 0:15:19]} 33. a5 Ra2 {[%emt 0:00:58]} 34. Qb8+ {[%emt 0:02:36]} Kh7 {[%emt 0:00:15]} 35. Qb6 {[%emt 0:00:31]} Bb7 {[%emt 0:01:32]} 36. Qb1+ {[%emt 0:01:01]} 1-0

[Event "EYCC Girls U14 2018"]
[Site "Riga"]
[Date "2018.08.21"]
[Round "2"]
[White "Poliakova, Varvara"]
[Black "Kirchei, Viktoriia"]
[Result "0-1"]
[ECO "A06"]
[WhiteElo "1791"]
[BlackElo "1987"]
[Annotator "NA RC"]
[PlyCount "100"]
[EventDate "2018.08.20"]
[EventType "swiss"]
[EventCountry "LAT"]
[SourceTitle "playchess.com"]
[Source "ChessBase"]
[SourceQuality "1"]
[TimeControl "40/5400+30:1800+30"]

1. Nf3 {[%emt 0:00:00]} d5 {[%emt 0:00:00]} 2. e3 {[%emt 0:00:00]} Nf6 {[%emt 0:00:00]} 3. b3 {[%emt 0:00:00]} g6 {[%emt 0:00:09]} 4. Bb2 {[%emt 0:00:06]} Bg7 {[%emt 0:00:04]} 5. c4 {[%emt 0:00:40]} e6 {[%emt 0:01:57]} 6. d4 {[%emt 0:02:08]} Nbd7 {[%emt 0:01:33]} 7. Nbd2 {[%emt 0:01:50]} b6 {[%emt 0:06:43]} 8. Bd3 {[%emt 0:03:50]} Bb7 $11 {[%emt 0:00:46]} 9. Rc1 {[%emt 0:03:25]} Ne4 {[%emt 0:01:21]} 10. cxd5 {[%emt 0:03:51]} exd5 {[%emt 0:01:12]} 11. O-O {[%emt 0:06:51]} O-O {[%emt 0:00:39]} 12. Qc2 {[%emt 0:05:53]} Nxd2 {[%emt 0:00:43]} 13. Qxd2 {[%emt 0:00:24]} Nf6 {[%emt 0:01:53]} 14. Ne5 {[%emt 0:08:44]} Rc8 {[%emt 0:13:17]} 15. Nc6 {[%emt 0:03:34]} Qd7 {[%emt 0:06:29]} 16. Nxa7 {[%emt 0:03:37]} Ra8 {[%emt 0:01:35]} 17. Nb5 {[%emt 0:00:05]} Ne4 {[%emt 0:10:38]} 18. Bxe4 {[%emt 0:01:59]} Qxb5 {[%emt 0:00:35]} 19. Bd3 {[%emt 0:00:56]} Qd7 {[%emt 0:00:21]} 20. a4 {[%emt 0:00:52]} f5 {[%emt 0:01:10]} 21. Rc2 {[%emt 0:02:48]} f4 {[%emt 0:06:17]} 22. exf4 {[%emt 0:03:36]} Bh6 {[%emt 0:03:05]} 23. Qc3 {[%emt 0:02:51]} Bxf4 {[%emt 0:15:08]} 24. Bc1 {[%emt 0:03:12]} Bd6 {[%emt 0:04:43]} 25. Re2 {[%emt 0:04:50]} Rf7 {[%emt 0:05:03]} 26. Rfe1 {[%emt 0:02:42]} Kg7 {[%emt 0:03:09]} 27. Be3 {[%emt 0:01:53]} Qd8 {[%emt 0:02:24]} 28. Qc1 {[%emt 0:03:27]} Qh4 {[%emt 0:00:37]} 29. g3 {[%emt 0:00:13]} Qh5 {[%emt 0:01:33]} 30. Rc2 {[%emt 0:02:34]} Bc8 {[%emt 0:01:42]} 31. Be2 {[%emt 0:01:08]} Qh3 {[%emt 0:00:14]} 32. Bf1 {[%emt 0:00:31]} Qh5 {[%emt 0:00:15]} 33. Bg2 {[%emt 0:05:22]} Bf5 {[%emt 0:00:16]} 34. Ra2 {[%emt 0:01:08]} Bg4 {[%emt 0:01:43]} 35. Qc6 {[%emt 0:02:06]} Raf8 {[%emt 0:04:35]} 36. Qxd5 {[%emt 0:02:43]} Rf5 {[%emt 0:00:05]} 37. Qc4 {[%emt 0:01:20]} g5 {[%emt 0:01:43]} 38. Qd3 {[%emt 0:03:58]} R5f6 {[%emt 0:01:17]} 39. Qf1 {[%emt 0:01:47]} Bxg3 {[%emt 0:00:34]} 40. hxg3 {[%emt 0:00:00]} Rh6 {[%emt 0:00:00]} 41. f4 {[%emt 0:18:39]} Qh2+ {[%emt 0:01:42]} 42. Kf2 {[%emt 0:00:01]} gxf4 {[%emt 0:00:10]} 43. Bxf4 {[%emt 0:00:32]} Rxf4+ {[%emt 0:00:13]} 44. gxf4 {[%emt 0:00:03]} Qxf4+ {[%emt 0:00:05]} 45. Kg1 {[%emt 0:00:05]} Qh2+ {[%emt 0:00:05]} 46. Kf2 {[%emt 0:00:03]} Rf6+ {[%emt 0:00:16]} 47. Ke3 {[%emt 0:00:00]} Qg3+ {[%emt 0:00:30]} 48. Kd2 {[%emt 0:05:03]} Rf2+ {[%emt 0:02:21]} 49. Kc1 {[%emt 0:02:04]} Qc3+ {[%emt 0:00:12]} 50. Kb1 {[%emt 0:00:06]} Bf5+ {[%emt 0:00:30]} 0-1

[Event "EYCC Girls U14 2018"]
[Site "Riga"]
[Date "2018.08.22"]
[Round "3"]
[White "Garifullina, Leya"]
[Black "Efendieva, Alina"]
[Result "1/2-1/2"]
[ECO "C50"]
[WhiteElo "2106"]
[BlackElo "1843"]
[Annotator "NA"]
[PlyCount "84"]
[EventDate "2018.08.20"]
[EventType "swiss"]
[EventCountry "LAT"]
[SourceTitle "playchess.com"]
[Source "ChessBase"]
[SourceQuality "1"]
[TimeControl "40/5400+30:1800+30"]

1. e4 {[%emt 0:00:00]} e5 {[%emt 0:00:00]} 2. Nf3 {[%emt 0:00:27]} Nc6 {[%emt 0:00:00]} 3. Bc4 {[%emt 0:00:43]} Nf6 {[%emt 0:00:00]} 4. d3 {[%emt 0:00:31]} Bc5 {[%emt 0:00:30]} 5. O-O {[%emt 0:00:24]} O-O {[%emt 0:00:19]} 6. Re1 {[%emt 0:01:00]} d6 {[%emt 0:04:03]} 7. c3 {[%emt 0:00:50]} Bb6 {[%emt 0:00:31]} 8. Bb3 {[%emt 0:02:11]} Ne7 {[%emt 0:01:18] LiveBook: 7 Games} 9. Nbd2 {[%emt 0:01:56]} c6 {[%emt 0:02:26]} 10. Nf1 {[%emt 0:01:45]} Ng6 {[%emt 0:00:18]} 11. Ng3 {[%emt 0:00:53]} Bc7 {[%emt 0:08:28]} 12. d4 {[%emt 0:02:59]} exd4 {[%emt 0:00:49]} 13. cxd4 $14 {[%emt 0:01:13]} h6 {[%emt 0:15:26]} 14. Qd3 {[%emt 0:06:55]} Kh7 {[%emt 0:13:53]} 15. Bd2 {[%emt 0:02:31]} Be6 {[%emt 0:17:01]} 16. Bxe6 {[%emt 0:06:34]} fxe6 {[%emt 0:00:10]} 17. Qb3 {[%emt 0:01:44]} Qd7 {[%emt 0:03:07]} 18. Rac1 {[%emt 0:01:32]} Bb6 {[%emt 0:02:45]} 19. h3 {[%emt 0:08:03]} e5 {[%emt 0:04:12]} 20. dxe5 {[%emt 0:02:32]} Nxe5 {[%emt 0:00:21]} 21. Nxe5 {[%emt 0:02:39]} dxe5 {[%emt 0:02:35]} 22. Be3 {[%emt 0:01:25]} Bxe3 {[%emt 0:02:07]} 23. Qxe3 {[%emt 0:01:18]} Qe6 {[%emt 0:00:48]} 24. b3 {[%emt 0:02:52]} b6 {[%emt 0:03:58]} 25. b4 {[%emt 0:05:37]} Qxa2 {[%emt 0:03:28]} 26. Rxc6 {[%emt 0:00:20]} Rac8 {[%emt 0:00:42]} 27. Rec1 {[%emt 0:06:17]} Rxc6 {[%emt 0:02:32]} 28. Rxc6 {[%emt 0:00:04]} Qb1+ {[%emt 0:00:06]} 29. Kh2 {[%emt 0:00:07]} Qxb4 {[%emt 0:00:12]} 30. Rc7 {[%emt 0:01:08]} Kh8 {[%emt 0:08:57]} 31. Rxa7 {[%emt 0:01:54]} Qd4 {[%emt 0:00:31]} 32. Qa3 {[%emt 0:02:03]} Rg8 {[%emt 0:00:45]} 33. f3 {[%emt 0:02:07]} Qd2 {[%emt 0:00:28]} 34. Nf1 {[%emt 0:05:34]} Qf2 {[%emt 0:01:36]} 35. Ne3 {[%emt 0:04:15]} Nh5 {[%emt 0:01:05]} 36. Rc7 {[%emt 0:07:18]} Qg3+ {[%emt 0:00:32]} 37. Kg1 {[%emt 0:01:17]} Nf4 {[%emt 0:00:49]} 38. Kf1 {[%emt 0:01:48]} Qh2 {[%emt 0:01:13]} 39. Qe7 {[%emt 0:00:00]} Qh1+ {[%emt 0:00:00]} 40. Kf2 {[%emt 0:00:00]} Nd3+ {[%emt 0:00:00]} 41. Ke2 {[%emt 0:04:22]} Nf4+ {[%emt 0:02:38]} 42. Kf2 {[%emt 0:05:11]} Nd3+ {[%emt 0:00:14]} 1/2-1/2

[Event "EYCC Girls U14 2018"]
[Site "Riga"]
[Date "2018.08.22"]
[Round "3"]
[White "Krasteva, Beloslava"]
[Black "Yakimova, Mariya"]
[Result "1-0"]
[ECO "A80"]
[WhiteElo "2086"]
[BlackElo "1875"]
[Annotator "NA"]
[PlyCount "63"]
[EventDate "2018.08.20"]
[EventType "swiss"]
[EventCountry "LAT"]
[SourceTitle "playchess.com"]
[Source "ChessBase"]
[SourceQuality "1"]
[TimeControl "40/5400+30:1800+30"]

1. d4 {[%emt 0:00:00]} f5 {[%emt 0:00:00]} 2. Bg5 {[%emt 0:01:04]} d5 {[%emt 0:00:00]} 3. c4 {[%emt 0:02:24]} c6 {[%emt 0:00:16]} 4. Nc3 {[%emt 0:02:47]} Be6 {[%emt 0:02:04]} 5. cxd5 {[%emt 0:02:32]} cxd5 {[%emt 0:00:18]} 6. e3 {[%emt 0:01:11]} h6 {[%emt 0:19:16]} 7. Bh4 {[%emt 0:02:40]} g5 {[%emt 0:04:09]} 8. Bg3 {[%emt 0:00:41]} Nf6 {[%emt 0:01:11]} 9. Nf3 $16 {[%emt 0:05:26]} Nbd7 {[%emt 0:12:29]} 10. Qb3 {[%emt 0:06:46]} Nh5 {[%emt 0:14:17]} 11. Be5 {[%emt 0:10:18]} Bg7 {[%emt 0:03:00]} 12. Qxb7 {[%emt 0:05:48]} Bxe5 {[%emt 0:03:10]} 13. Nxe5 {[%emt 0:05:44]} Nxe5 {[%emt 0:01:26]} 14. dxe5 {[%emt 0:00:05]} Kf7 {[%emt 0:03:20]} 15. Be2 {[%emt 0:02:26]} g4 {[%emt 0:06:41]} 16. O-O {[%emt 0:05:47]} a5 {[%emt 0:05:42]} 17. Qb3 {[%emt 0:09:00]} Qc7 {[%emt 0:02:37]} 18. f4 {[%emt 0:09:13]} Ng7 {[%emt 0:04:29]} 19. Nb5 {[%emt 0:02:01]} Qd7 {[%emt 0:02:10]} 20. Nd4 {[%emt 0:00:48]} Rab8 {[%emt 0:01:51]} 21. Qc3 {[%emt 0:01:40]} a4 {[%emt 0:05:44]} 22. b4 {[%emt 0:01:30]} Qb7 {[%emt 0:03:37]} 23. Rab1 {[%emt 0:03:33]} Bd7 {[%emt 0:00:48]} 24. b5 {[%emt 0:01:08]} h5 {[%emt 0:01:47]} 25. Qb4 {[%emt 0:01:23]} Qa7 {[%emt 0:00:50]} 26. Rfc1 {[%emt 0:02:08]} Rb7 {[%emt 0:00:58]} 27. Rc5 {[%emt 0:04:03]} e6 {[%emt 0:00:39]} 28. b6 {[%emt 0:01:03]} Qb8 {[%emt 0:00:22]} 29. Ba6 {[%emt 0:00:49]} Ne8 {[%emt 0:00:25]} 30. Bxb7 {[%emt 0:01:23]} Qxb7 {[%emt 0:00:04]} 31. Qa5 {[%emt 0:00:17]} Kf8 {[%emt 0:00:50]} 32. Qa7 {[%emt 0:00:24]} 1-0

[Event "EYCC Girls U14 2018"]
[Site "Riga"]
[Date "2018.08.22"]
[Round "3"]
[White "Allahverdiyeva, Ayan"]
[Black "Sovina, Maria"]
[Result "1-0"]
[ECO "B47"]
[WhiteElo "2046"]
[BlackElo "1856"]
[Annotator "NA"]
[PlyCount "117"]
[EventDate "2018.08.20"]
[EventType "swiss"]
[EventCountry "LAT"]
[SourceTitle "playchess.com"]
[Source "ChessBase"]
[SourceQuality "1"]
[TimeControl "40/5400+30:1800+30"]

1. e4 {[%emt 0:00:27]} c5 {[%emt 0:00:00]} 2. Nf3 {[%emt 0:00:05]} Nc6 {[%emt 0:00:00]} 3. d4 {[%emt 0:04:12]} cxd4 {[%emt 0:00:00]} 4. Nxd4 {[%emt 0:00:06]} Qc7 {[%emt 0:00:00]} 5. Nc3 {[%emt 0:00:06]} e6 {[%emt 0:00:00]} 6. g3 {[%emt 0:01:25]} Nf6 {[%emt 0:08:57]} 7. Ndb5 {[%emt 0:00:16]} Qb8 $1 {[%emt 0:02:31]} 8. Bf4 {[%emt 0:00:05]} e5 {[%emt 0:01:20]} 9. Bg5 {[%emt 0:00:11]} a6 {[%emt 0:06:28]} 10. Bxf6 {[%emt 0:00:19]} gxf6 {[%emt 0:09:37]} 11. Na3 {[%emt 0:03:05] LiveBook: 6 Games} Bb4 $16 {[%emt 0:06:41]} (11... Bxa3 $142 12. bxa3 d6) 12. Nc4 {[%emt 0:01:11]} b5 {[%emt 0:05:40]} 13. Ne3 {[%emt 0:00:19]} Qd6 {[%emt 0:08:46]} 14. Qxd6 {[%emt 0:03:15]} Bxd6 {[%emt 0:00:01]} 15. O-O-O {[%emt 0:00:52]} Be7 {[%emt 0:08:16]} 16. Ncd5 {[%emt 0:01:35]} O-O {[%emt 0:04:35]} 17. Bh3 {[%emt 0:32:52]} Bd8 {[%emt 0:07:10]} 18. Kb1 {[%emt 0:00:53]} Nd4 {[%emt 0:04:13]} 19. c3 {[%emt 0:01:24]} Ne6 {[%emt 0:01:26]} 20. Nf5 {[%emt 0:00:05]} Bb7 {[%emt 0:02:22]} 21. f3 {[%emt 0:04:16]} Bc6 {[%emt 0:04:20]} 22. Rd2 {[%emt 0:02:47]} Kh8 {[%emt 0:02:41]} 23. Rhd1 {[%emt 0:00:07]} Ng5 {[%emt 0:01:02]} 24. Bg4 {[%emt 0:00:49]} Rg8 {[%emt 0:03:30]} 25. Bh5 {[%emt 0:00:20]} Rf8 {[%emt 0:03:41]} 26. Nd6 {[%emt 0:05:56]} Kg7 {[%emt 0:02:04]} 27. Ne3 {[%emt 0:01:01]} Bc7 {[%emt 0:02:08]} 28. Ndf5+ {[%emt 0:04:46]} Kh8 {[%emt 0:00:50]} 29. Nh6 {[%emt 0:00:21]} Bb6 {[%emt 0:01:23]} 30. Nef5 {[%emt 0:00:14]} Bc5 {[%emt 0:02:26]} 31. h4 {[%emt 0:00:52]} Ne6 {[%emt 0:00:42]} 32. Nxf7+ {[%emt 0:00:53]} Kg8 {[%emt 0:00:12]} 33. N7d6 {[%emt 0:00:50]} a5 {[%emt 0:01:21]} 34. Bg4 {[%emt 0:01:05]} b4 {[%emt 0:00:47]} 35. Ne7+ {[%emt 0:00:16]} Kh8 {[%emt 0:00:40]} 36. Nxc6 {[%emt 0:01:49]} dxc6 {[%emt 0:00:20]} 37. Bxe6 {[%emt 0:00:06]} bxc3 {[%emt 0:00:07]} 38. bxc3 {[%emt 0:00:07]} Rab8+ {[%emt 0:00:05]} 39. Ka1 {[%emt 0:00:31]} Rb6 {[%emt 0:01:04]} 40. Nc4 {[%emt 0:00:00]} Rbb8 {[%emt 0:00:00]} 41. Nxa5 {[%emt 0:01:21]} Ra8 {[%emt 0:01:00]} 42. Nb7 {[%emt 0:01:11]} Be7 {[%emt 0:00:08]} 43. Rd7 {[%emt 0:00:07]} Ba3 {[%emt 0:00:04]} 44. Rd8 {[%emt 0:00:18]} Raxd8 {[%emt 0:00:08]} 45. Rxd8 {[%emt 0:00:05]} Rxd8 {[%emt 0:00:02]} 46. Nxd8 {[%emt 0:00:05]} c5 {[%emt 0:00:02]} 47. Nc6 {[%emt 0:00:24]} Kg7 {[%emt 0:00:04]} 48. Na5 {[%emt 0:00:07]} Kf8 {[%emt 0:00:07]} 49. Nc4 {[%emt 0:00:07]} Bc1 {[%emt 0:00:04]} 50. Bf5 {[%emt 0:00:14]} h6 {[%emt 0:00:06]} 51. Kb1 {[%emt 0:00:04]} Ke7 {[%emt 0:00:09]} 52. Kxc1 {[%emt 0:00:05]} Kf7 {[%emt 0:00:04]} 53. a4 {[%emt 0:00:02]} Ke7 {[%emt 0:00:06]} 54. a5 {[%emt 0:00:02]} Kf7 {[%emt 0:00:06]} 55. a6 {[%emt 0:00:02]} Ke7 {[%emt 0:00:04]} 56. a7 {[%emt 0:00:02]} Kf8 {[%emt 0:00:03]} 57. a8=Q+ {[%emt 0:00:07]} Kg7 {[%emt 0:00:03]} 58. Qb7+ {[%emt 0:00:08]} Kh8 {[%emt 0:00:07]} 59. Qh7# {[%emt 0:00:03]} 1-0

[Event "EYCC Girls U14 2018"]
[Site "Riga"]
[Date "2018.08.22"]
[Round "3"]
[White "Kirchei, Viktoriia"]
[Black "Tikhonova, Alesia"]
[Result "1-0"]
[ECO "C92"]
[WhiteElo "1987"]
[BlackElo "1792"]
[Annotator "NA"]
[PlyCount "75"]
[EventDate "2018.08.20"]
[EventType "swiss"]
[EventCountry "LAT"]
[SourceTitle "playchess.com"]
[Source "ChessBase"]
[SourceQuality "1"]
[TimeControl "40/5400+30:1800+30"]

1. e4 {[%emt 0:00:00]} e5 {[%emt 0:00:00]} 2. Nf3 {[%emt 0:00:00]} Nc6 {[%emt 0:00:00]} 3. Bb5 {[%emt 0:00:00]} a6 {[%emt 0:00:01]} 4. Ba4 {[%emt 0:00:00]} Nf6 {[%emt 0:00:05]} 5. O-O {[%emt 0:00:00]} Be7 {[%emt 0:00:05]} 6. Re1 {[%emt 0:00:23]} b5 {[%emt 0:00:22]} 7. Bb3 {[%emt 0:00:07]} d6 {[%emt 0:00:26]} 8. c3 {[%emt 0:00:16]} O-O {[%emt 0:00:36]} 9. h3 {[%emt 0:00:12]} Bb7 {[%emt 0:00:28]} 10. d4 {[%emt 0:00:36]} Re8 {[%emt 0:00:41]} 11. Nbd2 {[%emt 0:08:19]} h6 {[%emt 0:06:00]} 12. Nf1 {[%emt 0:00:55]} Bf8 {[%emt 0:02:30]} 13. Ng3 {[%emt 0:02:07]} Na5 {[%emt 0:02:18]} 14. Bc2 $1 {[%emt 0:00:33]} c5 {[%emt 0:00:40] LiveBook: 24 Games} 15. d5 {[%emt 0:04:24]} g6 $16 {[%emt 0:03:08]} 16. Nh2 {[%emt 0:03:19]} Bg7 {[%emt 0:13:23]} 17. Bd3 {[%emt 0:06:52]} c4 {[%emt 0:07:49]} 18. Be2 {[%emt 0:00:11]} Qc7 {[%emt 0:10:20]} 19. Be3 {[%emt 0:05:06]} Bc8 {[%emt 0:04:50]} 20. Ng4 {[%emt 0:03:02]} Bxg4 {[%emt 0:03:08]} 21. hxg4 {[%emt 0:00:20]} Nb7 {[%emt 0:01:36]} 22. f3 {[%emt 0:06:20]} Rac8 {[%emt 0:09:02]} 23. Kf2 {[%emt 0:01:27]} a5 {[%emt 0:09:08]} 24. Qd2 {[%emt 0:00:17]} g5 {[%emt 0:06:00]} 25. Rh1 {[%emt 0:02:01]} Nc5 {[%emt 0:00:35]} 26. Qc2 {[%emt 0:00:45]} Qb6 {[%emt 0:06:32]} 27. Nf5 {[%emt 0:02:28]} Kh7 {[%emt 0:00:58]} 28. Kf1 {[%emt 0:05:39]} Kg6 {[%emt 0:00:34]} 29. Qd2 {[%emt 0:05:21]} Bf8 {[%emt 0:07:36]} 30. Bd1 {[%emt 0:03:56]} Ng8 {[%emt 0:01:32]} 31. g3 {[%emt 0:00:58]} Ne7 {[%emt 0:00:42]} 32. Bc2 {[%emt 0:11:19]} Nxf5 {[%emt 0:02:12]} 33. gxf5+ {[%emt 0:03:40]} Kf6 {[%emt 0:01:18]} 34. Re1 {[%emt 0:11:33]} b4 {[%emt 0:01:14]} 35. Ba4 {[%emt 0:02:05]} Re7 {[%emt 0:00:43]} 36. Rh5 {[%emt 0:02:09]} Qb7 {[%emt 0:00:54]} 37. Bxg5+ {[%emt 0:00:09]} Kg7 {[%emt 0:00:01]} 38. Bxh6+ {[%emt 0:00:18]} 1-0

[Event "EYCC Girls U14 2018"]
[Site "Riga"]
[Date "2018.08.22"]
[Round "3"]
[White "Kuhar, Larisa"]
[Black "Stepanyan, Eva"]
[Result "1-0"]
[ECO "B18"]
[WhiteElo "1877"]
[BlackElo "2101"]
[Annotator "NA"]
[PlyCount "121"]
[EventDate "2018.08.20"]
[EventType "swiss"]
[EventCountry "LAT"]
[SourceTitle "playchess.com"]
[Source "ChessBase"]
[SourceQuality "1"]
[TimeControl "40/5400+30:1800+30"]

1. e4 {[%emt 0:00:00]} c6 {[%emt 0:00:00]} 2. d4 {[%emt 0:00:00]} d5 {[%emt 0:00:00]} 3. Nc3 {[%emt 0:00:00]} dxe4 {[%emt 0:00:00]} 4. Nxe4 {[%emt 0:00:00]} Bf5 {[%emt 0:00:00]} 5. Ng3 {[%emt 0:00:11]} Bg6 {[%emt 0:00:06]} 6. Bc4 {[%emt 0:00:22]} e6 {[%emt 0:00:23]} 7. N1e2 {[%emt 0:00:22]} Bd6 {[%emt 0:00:30]} 8. Nf4 {[%emt 0:00:55]} Nf6 {[%emt 0:00:22]} 9. c3 {[%emt 0:02:42]} Nbd7 {[%emt 0:00:17] B18: Classical Caro-Kann: 4...Bf5 sidelines} (9... Qc7 10. Qf3 Nbd7 11. h4 c5 12. dxc5 Qxc5 13. Qe2 Rc8 14. Bb3 Qc7 15. h5 Bxf4 16. Bxf4 Qxf4 17. hxg6 {½-½ (77) Harikrishna,P (2753)-Navara,D (2734) Huaian 2016}) 10. Qf3 {[%emt 0:02:05]} O-O {[%emt 0:01:28]} 11. Nxg6 {[%emt 0:03:25]} hxg6 {[%emt 0:00:08]} 12. Bb3 $146 {[%emt 0:08:09]} ({Predecessor:} 12. Be3 Qa5 13. O-O e5 14. Ne4 Nxe4 15. Qxe4 exd4 16. Qxd4 Qe5 17. Qxe5 Nxe5 {½-½ (50) Zelcic,R (2534)-Schachinger,M (2439) Zadar 2014}) 12... Qc7 {[%emt 0:05:33]} 13. Bg5 {[%emt 0:04:56]} c5 {[%emt 0:03:43]} 14. dxc5 {[%emt 0:05:39]} Bxc5 {[%emt 0:04:30]} 15. O-O {[%emt 0:03:20]} Nh7 {[%emt 0:16:51]} 16. Bd2 {[%emt 0:12:15]} Bd6 {[%emt 0:08:23]} 17. Rad1 {[%emt 0:08:43]} Nc5 {[%emt 0:02:30]} 18. Bc2 {[%emt 0:04:15]} Rad8 {[%emt 0:07:31]} 19. b4 {[%emt 0:06:09]} Nd7 {[%emt 0:00:22]} 20. Bb3 $11 {[%emt 0:01:13]} Ne5 {[%emt 0:09:48]} 21. Qe2 {[%emt 0:00:57]} Nc6 {[%emt 0:01:52]} 22. Rfe1 {[%emt 0:06:23]} Kh8 {[%emt 0:00:34]} 23. a3 {[%emt 0:03:55]} e5 {[%emt 0:04:47]} 24. Ne4 {[%emt 0:02:46]} Be7 {[%emt 0:00:29]} 25. Qc4 {[%emt 0:04:02]} Qb8 {[%emt 0:15:45]} 26. Nc5 {[%emt 0:05:14]} b6 {[%emt 0:04:35]} 27. Ne6 {[%emt 0:03:15]} fxe6 {[%emt 0:02:39]} 28. Qxc6 {[%emt 0:00:02]} Rf6 {[%emt 0:02:09]} 29. h4 {[%emt 0:02:31]} Rdf8 {[%emt 0:01:39]} 30. Bg5 {[%emt 0:03:56]} Nxg5 {[%emt 0:01:39]} 31. hxg5 {[%emt 0:00:01]} Rxf2 {[%emt 0:00:49]} 32. Qxe6 {[%emt 0:00:43]} Bxg5 {[%emt 0:00:06]} 33. Qxg6 {[%emt 0:00:43]} Bh6 {[%emt 0:02:53]} 34. Bc2 {[%emt 0:01:31]} Rxc2 {[%emt 0:00:32]} 35. Qxc2 {[%emt 0:00:02]} Qe8 {[%emt 0:02:09]} 36. Qe4 {[%emt 0:01:08]} Bf4 {[%emt 0:01:11]} 37. Rd3 {[%emt 0:00:18]} Qf7 {[%emt 0:01:26]} 38. Rh3+ {[%emt 0:01:21]} Bh6 {[%emt 0:00:05]} 39. Rf3 {[%emt 0:00:06]} Bf4 {[%emt 0:01:08]} 40. g3 {[%emt 0:00:00]} Qh5 {[%emt 0:00:00]} 41. gxf4 {[%emt 0:03:27]} Rf5 {[%emt 0:04:50]} 42. Rg3 {[%emt 0:02:01]} Qh4 {[%emt 0:00:41]} 43. Qh1 {[%emt 0:00:47]} Qxh1+ {[%emt 0:01:11]} 44. Kxh1 {[%emt 0:00:02]} exf4 {[%emt 0:00:06]} 45. Rf3 {[%emt 0:00:41]} g5 {[%emt 0:00:14]} 46. Ref1 {[%emt 0:00:29]} Kg7 {[%emt 0:00:51]} 47. Kg2 {[%emt 0:02:08]} Kg6 {[%emt 0:00:12]} 48. Rh3 {[%emt 0:00:43]} Rd5 {[%emt 0:00:33]} 49. Rh8 {[%emt 0:00:59]} Kf5 {[%emt 0:02:16]} 50. Rf8+ {[%emt 0:01:52]} Kg4 {[%emt 0:00:17]} 51. Rg1 {[%emt 0:01:01]} b5 {[%emt 0:02:17]} 52. Kf2+ {[%emt 0:00:21]} Kh5 {[%emt 0:00:08]} 53. Rh8+ {[%emt 0:00:40]} Kg6 {[%emt 0:00:03]} 54. Kf3 {[%emt 0:00:26]} Rd3+ {[%emt 0:00:17]} 55. Ke4 {[%emt 0:00:11]} Rxc3 {[%emt 0:00:21]} 56. Rg8+ {[%emt 0:00:17]} Kf7 {[%emt 0:00:14]} 57. R8xg5 {[%emt 0:00:26]} Rxa3 {[%emt 0:00:27]} 58. Rxb5 {[%emt 0:00:40]} Rb3 {[%emt 0:00:27]} 59. Kf5 {[%emt 0:00:28]} a5 {[%emt 0:01:04]} 60. Rb7+ {[%emt 0:00:06]} Kf8 {[%emt 0:00:05]} 61. Ke4 1-0